bitfinex/quotes_SOLUSD_20260214
["timestamp","ask_amount","ask_price","bid_price","bid_amount"]
[1771086815944,53.12,87.718,87.69,8.32703313]
[1771086816148,53.12,87.718,87.691,0.98703085]
[1771086816534,0.04571993,87.731,87.691,0.98703085]
[1771086816745,28.49602819,87.732,87.682,39.91697269]
[1771086816746,0.04571993,87.729,87.69,7.34000228]
[1771086817860,0.0511422,87.719,87.684,11.40454332]
[1771086818548,0.05650845,87.709,87.675,11.4056938]
[1771086818951,0.05650845,87.718,87.676,0.98703085]
[1771086819135,53.14,87.717,87.68,8.32703313]
[1771086819334,0.06182905,87.716,87.675,11.4056938]
[1771086819535,0.06182905,87.709,87.675,11.4056938]
[1771086819756,7.34000228,87.7,87.673,4.61729252]
[1771086820258,0.06707179,87.689,87.656,11.40814349]
[1771086820561,0.06707179,87.698,87.661,0.98703085]
[1771086821057,0.07741663,87.709,87.661,0.98703085]
[1771086821437,0.07741663,87.707,87.661,0.98703085]
[1771086821753,0.07741663,87.705,87.663,0.98703085]
[1771086821962,0.07741663,87.699,87.663,0.98703085]
[1771086823056,11.4800552,87.699,87.665,0.98703085]
[1771086825160,11.4800552,87.699,87.667,0.98703085]
[1771086826357,0.10696129,87.698,87.667,0.98703085]
[1771086827465,0.10696129,87.698,87.668,11.40667062]
[1771086827779,0.11170579,87.715,87.668,0.98703085]
[1771086827952,7.34000228,87.71,87.681,0.98703085]
[1771086828148,7.34000228,87.7,87.673,0.98703085]
[1771086828346,7.34000228,87.7,87.667,11.40668543]
[1771086828347,0.11638155,87.699,87.667,11.40668543]
[1771086828780,7.34000228,87.71,87.671,0.98703085]
[1771086829354,7.34000228,87.72,87.681,0.98703085]
[1771086829560,56.97522349,87.758,87.681,0.98703085]
[1771086829561,0.12099827,87.778,87.714,0.98703085]
[1771086829787,0.12099827,87.778,87.673,1.140602]
[1771086829788,1.04753392,87.853,87.682,34.36]
[1771086830079,7.34000228,87.81,87.71,7.34000228]
[1771086830272,1.04753392,87.815,87.76,7.34000228]
[1771086830455,1.04753392,87.815,87.77,7.34000228]
[1771086830777,0.1,87.82,87.78,7.34000228]
[1771086830964,7.26636088,87.84,87.781,8.4284829]
[1771086831289,1.04753392,87.866,87.783,5.36086188]
[1771086831584,45.49717691,87.918,87.784,96.82857922]
[1771086831585,7.26636088,87.85,87.784,96.82857922]
[1771086831875,7.26636088,87.82,87.784,11.39159755]
[1771086832195,1.04753392,87.809,87.765,47.98]
[1771086832476,8.3138948,87.79,87.747,0.02269205]
[1771086832857,1.04753392,87.789,87.747,0.02269205]
[1771086833570,1.04753392,87.787,87.747,0.02269205]
[1771086833771,1.04753392,87.769,87.724,0.030081]
[1771086833979,1.04753392,87.769,87.731,47.98]
[1771086834269,7.26636088,87.77,87.732,0.03739458]
[1771086834454,7.26636088,87.75,87.72,0.03739458]
[1771086834653,7.26636088,87.76,87.72,0.03739458]
[1771086835059,7.26636088,87.77,87.72,0.03739458]
[1771086835461,7.26636088,87.79,87.725,0.02438714]
[1771086835657,1.04753392,87.816,87.761,0.02438714]
[1771086835970,1.04753392,87.816,87.766,0.02438714]
[1771086836353,1.04753392,87.824,87.773,4.61729252]
[1771086836572,7.26636088,87.82,87.773,4.61729252]
[1771086837148,1.04753392,87.819,87.77,4.61729252]
[1771086837955,1.04753392,87.817,87.774,4.61729252]
[1771086839173,1.04753392,87.815,87.775,11.39276559]
[1771086839374,1.04753392,87.827,87.775,39.87467957]
[1771086839560,1.04753392,87.827,87.78,7.26636088]
[1771086839762,1.04753392,87.827,87.776,47.98]
[1771086840066,1.04753392,87.819,87.775,11.39276559]
[1771086840258,1.04753392,87.809,87.775,11.39276559]
[1771086840459,11.38614988,87.826,87.77,4.61729252]
[1771086840460,7.26636088,87.8,87.77,4.61729252]
[1771086840773,39.85152459,87.826,87.752,11.39574744]
[1771086840774,1.04753392,87.789,87.752,11.39574744]
[1771086840973,7.26636088,87.77,87.737,12.35481973]
[1771086841173,11.39484269,87.759,87.737,0.95711979]
[1771086841363,11.39337802,87.771,87.737,12.35469867]
[1771086841560,8.26311005,87.78,87.738,0.95711979]
[1771086841865,0.99674917,87.78,87.738,0.95711979]
[1771086842179,8.26311005,87.78,87.738,0.95711979]
[1771086842471,0.99674917,87.78,87.738,0.95711979]
[1771086842671,0.99674917,87.769,87.729,11.39861496]
[1771086842877,0.99674917,87.769,87.728,12.35590842]
[1771086843180,53.14,87.805,87.718,47.98]
[1771086843181,0.99674917,87.779,87.731,0.95711979]
[1771086843356,11.39228039,87.779,87.731,0.95711979]
[1771086843555,0.99674917,87.778,87.731,0.95711979]
[1771086845278,11.39228039,87.779,87.733,0.95711979]
[1771086845883,11.39058533,87.792,87.741,0.95711979]
[1771086846061,7.26636088,87.79,87.741,0.95711979]
[1771086846259,53.06,87.809,87.732,39.8942233]
[1771086846260,7.26636088,87.8,87.751,0.95711979]
[1771086846878,56.92285585,87.839,87.732,96.88597089]
[1771086846879,0.976768,87.819,87.764,0.95711979]
[1771086847388,0.96544437,87.808,87.766,0.95711979]
[1771086847561,7.26636088,87.8,87.766,0.95711979]
[1771086847883,0.96544437,87.808,87.766,0.95711979]
[1771086848085,11.38835426,87.809,87.766,0.95711979]
[1771086848382,7.26636088,87.81,87.766,0.88211979]
[1771086848581,8.26311005,87.81,87.766,0.88211979]
[1771086848959,0.99674917,87.822,87.77,7.26636088]
[1771086849163,45.50506227,87.903,87.8,7.26636088]
[1771086849164,8.26311005,87.85,87.8,7.26636088]
[1771086849359,11.38446475,87.839,87.8,11.38952164]
[1771086849764,12.38038708,87.846,87.8,47.12968662]
[1771086850277,0.99674917,87.845,87.8,11.38952164]
[1771086850477,7.26636088,87.84,87.801,0.95711979]
[1771086850658,0.99674917,87.845,87.801,0.95711979]
[1771086850863,7.26636088,87.84,87.801,0.95711979]
[1771086851066,0.99674917,87.845,87.801,0.95711979]
[1771086851766,11.38381676,87.844,87.802,11.3892622]
[1771086851971,11.38381676,87.844,87.803,0.95711979]
[1771086852372,7.26636088,87.84,87.803,0.95711979]
[1771086852581,7.26636088,87.84,87.786,33.09538683]
[1771086852582,0.98574752,87.819,87.775,11.39276559]
[1771086852779,0.88611719,87.809,87.773,12.29209309]
[1771086852978,0.88611719,87.819,87.774,0.89906791]
[1771086853189,0.88611719,87.827,87.781,0.89906791]
[1771086853862,12.27226707,87.826,87.783,0.89906791]
[1771086854483,0.88611719,87.825,87.783,0.89906791]
[1771086854689,7.26636088,87.82,87.783,0.89906791]
[1771086855276,0.88611719,87.825,87.783,0.89906791]
[1771086855572,7.26636088,87.82,87.783,0.89906791]
[1771086855772,0.88611719,87.819,87.783,0.89906791]
[1771086855977,0.88611719,87.817,87.775,11.39263864]
[1771086856374,0.88611719,87.809,87.775,11.39263864]
[1771086856789,0.88611719,87.809,87.776,0.89906791]
[1771086857488,11.38848396,87.808,87.776,0.89906791]
[1771086858287,7.26636088,87.79,87.755,0.89906791]
[1771086858586,0.88611719,87.789,87.755,0.89906791]
[1771086858786,7.26636088,87.77,87.741,0.89906791]
[1771086859000,0.88611719,87.779,87.742,11.39705044]
[1771086859176,39.85969387,87.808,87.701,30.0]
[1771086859177,7.26636088,87.77,87.731,0.89906791]
[1771086859380,12.28095988,87.759,87.723,11.39951894]
[1771086859685,12.28095988,87.759,87.724,0.89906791]
[1771086860078,7.26636088,87.75,87.723,11.39951894]
[1771086860387,11.39510238,87.757,87.722,0.89906791]
[1771086861468,7.26636088,87.75,87.722,0.89906791]
[1771086862188,0.88539121,87.756,87.722,0.89906791]
[1771086862486,11.39536208,87.755,87.722,0.89906791]
[1771086862883,7.26636088,87.75,87.722,0.89906791]
[1771086863481,11.39536208,87.755,87.724,0.89906791]
[1771086863990,18.66112407,87.76,87.724,0.89906791]
[1771086864685,7.26636088,87.77,87.725,11.39925904]
[1771086864880,7.26636088,87.77,87.726,0.89906791]
[1771086865084,7.26636088,87.76,87.726,0.89906791]
[1771086866884,11.39484269,87.759,87.728,0.89906791]
[1771086867292,7.26636088,87.75,87.719,0.89906791]
[1771086867489,7.26636088,87.75,87.72,11.3999088]
[1771086867680,7.26636088,87.75,87.721,0.89906791]
[1771086868380,7.26636088,87.75,87.714,0.89906791]
[1771086869287,11.39547001,87.755,87.716,0.89906791]
[1771086869800,11.39437451,87.763,87.721,0.89906791]
[1771086870598,7.26636088,87.77,87.731,0.89906791]
[1771086870982,11.39354441,87.769,87.731,0.89906791]
[1771086871296,7.26636088,87.76,87.731,0.89906791]
[1771086871599,11.39484269,87.759,87.732,0.89906791]
[1771086872179,7.26636088,87.75,87.716,12.29949656]
[1771086872383,7.26636088,87.75,87.717,0.89906791]
[1771086873500,7.26636088,87.75,87.719,0.89906791]
[1771086873501,18.66237785,87.75,87.719,0.89906791]
[1771086873795,7.26636088,87.75,87.719,0.89906791]
[1771086874195,11.39537059,87.755,87.719,0.89906791]
[1771086874396,7.26636088,87.76,87.721,0.89906791]
[1771086874792,7.26636088,87.75,87.721,0.89906791]
[1771086875595,7.26636088,87.75,87.71,7.26636088]
[1771086875596,7.26636088,87.75,87.723,0.89906791]
[1771086876386,0.26301459,87.759,87.723,0.89906791]
[1771086876585,11.39497253,87.758,87.723,0.89906791]
[1771086878796,7.26636088,87.76,87.725,0.89906791]
[1771086879002,18.66109968,87.76,87.725,0.89906791]
[1771086880409,11.3947388,87.76,87.725,0.89906791]
[1771086880610,18.66109968,87.76,87.727,0.89906791]
[1771086882110,18.66109968,87.76,87.728,11.39886923]
[1771086882790,18.66109968,87.76,87.727,0.89906791]
[1771086883311,0.18695874,87.759,87.729,0.7630771]
[1771086886201,11.39497253,87.758,87.73,11.39860936]
[1771086887003,11.39497253,87.758,87.73,12.16168646]
[1771086887206,11.39497253,87.758,87.731,0.7630771]
[1771086887895,11.39497253,87.758,87.733,0.7630771]
[1771086888610,0.15210151,87.749,87.717,0.7630771]
[1771086888824,0.15210151,87.757,87.717,0.7630771]
[1771086889118,11.39497253,87.758,87.717,0.7630771]
[1771086889326,11.39497253,87.758,87.721,0.7630771]
[1771086890395,11.39497253,87.758,87.722,0.7630771]
[1771086890596,0.1387127,87.757,87.722,0.7630771]
[1771086890797,7.26636088,87.74,87.722,0.7630771]
[1771086891121,0.1387127,87.749,87.722,0.7630771]
[1771086891325,0.1387127,87.749,87.713,0.7630771]
[1771086892107,7.26636088,87.74,87.713,0.7630771]
[1771086892303,0.12562969,87.739,87.706,11.4017254]
[1771086892527,0.12562969,87.729,87.698,0.7630771]
[1771086892816,7.26636088,87.72,87.674,0.7630771]
[1771086893005,7.28533981,87.72,87.681,0.7630771]
[1771086894492,11.40003876,87.719,87.683,0.7630771]
[1771086897325,11.40003876,87.719,87.685,0.7630771]
[1771086900315,11.39886923,87.728,87.686,11.40432908]
[1771086900519,11.39886923,87.728,87.701,0.7630771]
[1771086901026,0.07621834,87.786,87.721,0.7630771]
[1771086901211,7.28533981,87.73,87.703,0.7630771]
[1771086901530,7.28533981,87.72,87.687,0.7630771]
[1771086902931,7.28533981,87.7,87.679,0.7630771]
[1771086904036,7.28533981,87.69,87.663,0.7630771]
[1771086904537,0.05317328,87.669,87.639,0.7630771]
[1771086904840,11.40784175,87.659,87.639,0.7630771]
[1771086905015,2.91847683,87.65,87.625,0.7630771]
[1771086905221,2.91847683,87.65,87.62,0.2]
[1771086905222,2.91847683,87.63,87.62,0.2]
[1771086905441,39.92744612,87.659,87.621,0.7630771]
[1771086905442,2.91847683,87.64,87.621,0.7630771]
[1771086905616,2.91847683,87.63,87.611,0.7630771]
[1771086906513,2.91847683,87.65,87.613,0.7630771]
[1771086906717,39.92744612,87.659,87.613,0.7630771]
[1771086906718,11.40784175,87.659,87.613,0.7630771]
[1771086906918,7.29660001,87.65,87.615,0.7630771]
[1771086908032,7.29660001,87.63,87.606,0.7630771]
[1771086908610,7.29660001,87.62,87.606,0.7630771]
[1771086909413,7.29660001,87.62,87.597,12.17891083]
[1771086909615,7.29660001,87.62,87.598,0.7630771]
[1771086909817,7.29660001,87.61,87.589,0.7630771]
[1771086910334,7.29660001,87.62,87.589,0.7630771]
[1771086910728,7.29660001,87.61,87.589,0.7630771]
[1771086912134,11.4143524,87.609,87.58,0.2]
[1771086912321,7.29660001,87.6,87.581,0.7630771]
[1771086913235,7.29660001,87.6,87.58,0.2]
[1771086913429,7.29660001,87.59,87.58,0.2]
[1771086913925,39.93655792,87.639,87.582,0.7170489]
[1771086914130,7.29660001,87.61,87.582,0.7170489]
[1771086915340,7.29660001,87.61,87.58,0.2]
[1771086915341,7.29660001,87.62,87.584,0.7170489]
[1771086915527,52.26,87.628,87.584,0.7170489]
[1771086915528,11.41241962,87.624,87.584,0.7170489]
[1771086916240,11.41241962,87.624,87.591,0.7170489]
[1771086916823,11.41174725,87.629,87.592,11.41656772]
[1771086917023,11.41174725,87.629,87.593,0.7170489]
[1771086919945,28.52634662,87.639,87.593,0.7170489]
[1771086920345,7.29660001,87.63,87.595,0.7170489]
[1771086923347,11.41174725,87.629,87.595,0.7170489]
[1771086923845,11.41174725,87.629,87.58,0.2]
[1771086923846,7.29660001,87.61,87.58,0.2]
[1771086924351,7.29660001,87.61,87.58,0.9170489]
[1771086924932,7.29660001,87.59,87.568,0.7170489]
[1771086925134,7.29660001,87.58,87.56,0.2]
[1771086926048,7.29660001,87.58,87.56,0.9170489]
[1771086926246,7.29660001,87.58,87.542,28.55759886]
[1771086926436,7.29660001,87.56,87.52,7.29660001]
[1771086927750,11.42087049,87.559,87.511,39.99497205]
[1771086928344,11.42087049,87.559,87.512,0.70650518]
[1771086928345,7.29660001,87.55,87.512,0.70650518]
[1771086930240,11.42217501,87.549,87.514,0.70650518]
[1771086930435,0.63965441,87.548,87.514,0.70650518]
[1771086930759,7.29660001,87.54,87.514,0.70650518]
[1771086931356,7.93215733,87.54,87.514,0.70650518]
[1771086931567,7.29660001,87.53,87.506,12.13423702]
[1771086931755,0.63555732,87.576,87.507,0.70650518]
[1771086931936,0.63555732,87.576,87.506,11.42773184]
[1771086931937,11.41878389,87.575,87.531,0.70650518]
[1771086932447,12.05029118,87.575,87.533,0.70650518]
[1771086932641,0.63150729,87.574,87.54,7.29660001]
[1771086932839,0.63150729,87.574,87.541,0.70650518]
[1771086933960,7.29660001,87.57,87.541,0.70650518]
[1771086934163,7.29660001,87.55,87.524,0.70650518]
[1771086934346,0.62354626,87.549,87.521,11.42582922]
[1771086934544,12.04585173,87.548,87.516,11.42648201]
[1771086934859,0.62354626,87.547,87.516,11.42648201]
[1771086935450,7.29660001,87.54,87.515,0.70650518]
[1771086936358,7.29660001,87.54,87.515,12.13306796]
[1771086936861,7.29660001,87.54,87.515,0.70650518]
[1771086937260,7.29660001,87.54,87.504,47.28]
[1771086937261,7.29660001,87.57,87.531,0.70650518]
[1771086938637,11.41956628,87.569,87.533,0.70650518]
[1771086939165,0.60816553,87.568,87.533,0.70650518]
[1771086939744,7.29660001,87.54,87.512,0.70650518]
[1771086939941,7.29660001,87.52,87.492,0.70650518]
[1771086940764,7.29660001,87.52,87.493,12.13599096]
[1771086942667,7.29660001,87.51,87.49,0.2]
[1771086942840,11.42739603,87.509,87.49,0.2]
[1771086943247,7.87950164,87.51,87.48,0.61665834]
[1771086943546,7.29660001,87.5,87.471,0.61665834]
[1771086943746,7.29660001,87.49,87.471,0.61665834]
[1771086943964,0.58290163,87.489,87.46,47.32]
[1771086944166,0.58290163,87.489,87.454,0.61665834]
[1771086944352,7.87605642,87.5,87.454,0.61665834]
[1771086944547,0.57945641,87.489,87.448,11.43536598]
[1771086944743,18.72910412,87.47,87.445,0.61665834]
[1771086944976,18.72910412,87.47,87.444,0.61665834]
[1771086944977,7.29660001,87.47,87.444,0.61665834]
[1771086946369,7.29660001,87.46,87.434,0.61665834]
[1771086946557,52.28,87.496,87.43,0.2]
[1771086946558,0.57268422,87.512,87.451,0.61665834]
[1771086946876,19.29524401,87.52,87.472,0.61665834]
[1771086947071,0.57268422,87.519,87.472,0.61665834]
[1771086947375,7.29660001,87.51,87.472,0.61665834]
[1771086947854,7.29660001,87.49,87.461,0.61665834]
[1771086948054,97.12065813,87.52,87.43,15.7168857]
[1771086948055,0.56935635,87.479,87.447,11.43543814]
[1771086948469,7.29660001,87.49,87.451,0.61665834]
[1771086948771,7.29660001,87.49,87.453,0.61665834]
[1771086949277,18.72658072,87.49,87.453,0.61665834]
[1771086950165,7.29660001,87.49,87.453,0.61665834]
[1771086950763,11.43000834,87.489,87.454,11.43458275]
[1771086950965,11.43000834,87.489,87.455,0.61665834]
[1771086951362,11.43000834,87.489,87.454,11.43458275]
[1771086951363,0.55642275,87.541,87.481,0.61665834]
[1771086951593,0.62789359,87.594,87.534,0.61665834]
[1771086951791,0.62789359,87.594,87.533,4.61729252]
[1771086951792,11.41670172,87.591,87.561,0.61665834]
[1771086952777,0.62789359,87.594,87.561,0.61665834]
[1771086953081,11.41664513,87.592,87.562,11.4204792]
[1771086953589,0.62789359,87.594,87.562,11.4204792]
[1771086954483,11.41643738,87.593,87.562,11.4204792]
[1771086955276,12.04433097,87.593,87.562,11.4204792]
[1771086956757,0.62789359,87.579,87.541,0.61665834]
[1771086956977,0.62789359,87.569,87.531,0.61665834]
[1771086957368,0.62789359,87.569,87.54,7.30565365]
[1771086957598,0.62789359,87.569,87.525,47.52]
[1771086957599,0.62789359,87.617,87.561,0.61665834]
[1771086957759,0.62789359,87.609,87.57,7.30565365]
[1771086958163,11.41317994,87.618,87.581,0.61665834]
[1771086958467,0.62789359,87.617,87.581,0.61665834]
[1771086958987,0.62789359,87.617,87.59,7.30565365]
[1771086959153,11.41344046,87.616,87.59,7.30565365]
[1771086959358,11.41344046,87.616,87.552,46.3]
[1771086959359,7.30565365,87.6,87.564,0.61665834]
[1771086959561,0.62789359,87.599,87.557,28.55252919]
[1771086960060,0.62789359,87.599,87.561,0.61665834]
[1771086960274,12.04025301,87.625,87.591,0.61665834]
[1771086961173,0.62789359,87.619,87.577,0.61665834]
[1771086961367,0.62789359,87.599,87.561,11.42051536]
[1771086961567,0.62789359,87.589,87.556,0.61665834]
[1771086961767,0.62789359,87.589,87.55,7.30565365]
[1771086962285,0.62789359,87.589,87.552,0.61665834]
[1771086962669,0.62789359,87.603,87.561,0.61665834]
[1771086963173,0.62789359,87.603,87.57,7.30565365]
[1771086963362,11.41526449,87.602,87.57,7.30565365]
[1771086963562,12.04315808,87.602,87.563,0.61665834]
[1771086963982,0.62789359,87.601,87.563,0.61665834]
[1771086964182,11.41526449,87.602,87.557,11.42109397]
[1771086964183,0.62789359,87.589,87.557,11.42109397]
[1771086965192,11.41606094,87.596,87.562,0.61665834]
[1771086965586,0.62789359,87.595,87.552,0.61665834]
[1771086965777,0.62789359,87.589,87.542,0.61665834]
[1771086967391,0.62789359,87.587,87.55,7.30565365]
[1771086967782,0.62789359,87.587,87.544,0.61665834]
[1771086967989,0.62789359,87.579,87.544,0.61665834]
[1771086969786,0.62789359,87.599,87.551,0.61665834]
[1771086969989,0.62789359,87.598,87.551,0.61665834]
[1771086971785,0.62789359,87.589,87.553,0.61665834]
[1771086972294,0.62789359,87.619,87.571,0.61665834]
[1771086972596,11.41264613,87.623,87.591,0.61665834]
[1771086972772,3.71209907,87.665,87.568,47.48]
[1771086972773,0.59131746,87.643,87.601,0.57885487]
[1771086973492,0.59131746,87.639,87.601,0.57885487]
[1771086973898,0.59131746,87.646,87.603,0.57885487]
[1771086974073,0.59131746,87.646,87.61,7.88450852]
[1771086974468,0.59131746,87.646,87.611,0.57885487]
[1771086975703,0.59131746,87.646,87.613,0.57885487]
[1771086975872,0.59131746,87.646,87.612,11.41396155]
[1771086975873,0.59131746,87.679,87.631,0.57885487]
[1771086976589,0.59131746,87.679,87.64,7.30565365]
[1771086976795,0.59131746,87.679,87.641,0.57885487]
[1771086977369,0.59131746,87.679,87.613,30.0]
[1771086977370,0.59131746,87.699,87.661,0.57885487]
[1771086977571,0.59131746,87.689,87.641,0.57885487]
[1771086977784,0.59131746,87.679,87.642,11.41005454]
[1771086978192,11.40406897,87.688,87.65,7.30565365]
[1771086978391,11.40406897,87.688,87.642,39.93519089]
[1771086978392,11.40263857,87.699,87.661,0.57885487]
[1771086978589,11.99395603,87.699,87.661,0.57885487]
[1771086978798,0.59131746,87.689,87.651,0.57885487]
[1771086979802,0.59131746,87.689,87.652,11.40875279]
[1771086980005,0.59131746,87.689,87.652,11.98760766]
[1771086980200,0.59131746,87.687,87.652,11.40875279]
[1771086980408,0.59131746,87.687,87.647,11.40933341]
[1771086981400,0.59131746,87.687,87.65,7.30565365]
[1771086981699,0.59131746,87.679,87.647,11.40933341]
[1771086982200,0.59131746,87.694,87.661,0.57885487]
[1771086983110,11.40353085,87.693,87.661,0.57885487]
[1771086984308,0.59131746,87.705,87.67,7.30565365]
[1771086984495,28.50147658,87.715,87.671,0.57885487]
[1771086984496,11.4019885,87.704,87.671,0.57885487]
[1771086984695,7.30565365,87.7,87.671,0.57885487]
[1771086985006,0.59131746,87.699,87.662,11.40745134]
[1771086986407,11.40255007,87.7,87.636,30.0]
[1771086986408,0.59131746,87.697,87.656,11.40819948]
[1771086986612,0.59131746,87.689,87.656,11.40819948]
[1771086987387,0.59131746,87.679,87.636,30.0]
[1771086987601,0.59131746,87.669,87.637,11.41070552]
[1771086987787,0.59131746,87.669,87.639,30.0]
[1771086987983,0.59131746,87.669,87.637,11.41070552]
[1771086988202,0.59131746,87.683,87.65,7.88450852]
[1771086988403,0.59131746,87.683,87.65,7.30565365]
[1771086988608,0.59131746,87.683,87.651,0.57885487]
[1771086989209,0.59131746,87.683,87.652,11.98760766]
[1771086989406,0.59131746,87.683,87.653,0.57885487]
[1771086990111,0.59131746,87.679,87.647,11.40933201]
[1771086990291,0.59131746,87.669,87.624,11.99125329]
[1771086990491,0.59131746,87.669,87.625,0.57885487]
[1771086990692,0.59131746,87.659,87.624,11.41239842]
[1771086991410,0.59131746,87.657,87.626,30.0]
[1771086991805,0.59131746,87.649,87.626,30.0]
[1771086992311,0.59131746,87.649,87.62,11.41288913]
[1771086995898,11.40927345,87.648,87.62,11.41288913]
[1771086996095,0.59131746,87.647,87.62,11.41288913]
[1771086996812,51.68,87.672,87.62,11.41288913]
[1771086996813,0.59131746,87.667,87.631,0.57885487]
[1771086997815,0.59131746,87.659,87.621,47.28]
[1771086997990,0.59131746,87.647,87.62,11.41288913]
[1771086999020,11.40865107,87.653,87.621,0.57885487]
[1771086999506,0.59131746,87.669,87.621,0.57885487]
[1771086999707,0.59131746,87.659,87.621,0.57885487]
[1771087000620,7.30565365,87.66,87.621,0.57885487]
[1771087000621,0.59131746,87.657,87.622,11.41265892]
[1771087001027,0.55726122,87.669,87.631,0.51856003]
[1771087002024,11.40581294,87.675,87.631,0.51856003]
[1771087002196,0.55726122,87.678,87.641,0.51856003]
[1771087002602,0.55726122,87.678,87.643,0.51856003]
[1771087003618,0.55726122,87.678,87.65,7.30565365]
[1771087003805,0.55726122,87.678,87.65,0.56735626]
[1771087005300,0.56586827,87.687,87.652,0.56735626]
[1771087006518,0.56586827,87.679,87.651,11.40888295]
[1771087006715,0.56586827,87.679,87.647,47.4]
[1771087006911,0.56586827,87.679,87.648,11.40927345]
[1771087007121,0.56586827,87.679,87.647,47.4]
[1771087007322,0.56586827,87.667,87.635,0.56735626]
[1771087007516,0.56586827,87.667,87.636,11.41083572]
[1771087007715,0.56586827,87.667,87.636,40.5052813]
[1771087008012,0.56586827,87.667,87.637,0.56735626]
[1771087010120,0.56586827,87.665,87.626,28.53028591]
[1771087010330,0.56586827,87.659,87.626,28.53028591]
[1771087011324,0.56586827,87.658,87.626,28.53028591]
[1771087011539,0.56586827,87.639,87.612,11.41392768]
[1771087012616,0.56586827,87.639,87.607,0.56735626]
[1771087012823,0.56586827,87.639,87.612,11.41386018]
[1771087013330,0.56586827,87.637,87.612,11.41386018]
[1771087013827,11.97578914,87.644,87.616,42.34316308]
[1771087014024,0.56586827,87.643,87.616,42.34316308]
[1771087015115,0.56586827,87.641,87.616,42.34316308]
[1771087015511,7.2982886,87.63,87.592,0.56735626]
[1771087015835,7.2982886,87.63,87.594,0.56735626]
[1771087016325,7.2982886,87.62,87.593,47.52]
[1771087016722,7.2982886,87.6,87.57,0.56735626]
[1771087018025,11.41565542,87.599,87.572,0.56735626]
[1771087018215,7.2982886,87.58,87.563,0.56735626]
[1771087018829,7.2982886,87.58,87.554,0.56735626]
[1771087020013,7.2982886,87.59,87.554,0.56735626]
[1771087020418,11.41695875,87.589,87.555,11.42139226]
[1771087020627,11.41695875,87.589,87.556,0.56735626]
[1771087020931,57.06176396,87.625,87.555,11.42139226]
[1771087020932,7.2982886,87.62,87.581,0.56735626]
[1771087021225,7.2982886,87.63,87.581,0.56735626]
[1771087021435,7.2982886,87.64,87.601,0.56735626]
[1771087022218,0.04138301,87.648,87.601,0.56735626]
[1771087022414,11.40914328,87.649,87.611,11.48144809]
[1771087022615,11.40914328,87.649,87.611,11.41409183]
[1771087023132,11.40856794,87.654,87.62,7.2982886]
[1771087024125,11.40719109,87.664,87.62,7.2982886]
[1771087024326,0.56586827,87.674,87.63,7.2982886]
[1771087024533,0.56586827,87.669,87.633,0.56735626]
[1771087024731,0.56586827,87.659,87.624,11.97963793]
[1771087025322,0.56586827,87.659,87.625,0.56735626]
[1771087025729,0.56586827,87.669,87.631,0.56735626]
[1771087026546,7.2982886,87.68,87.641,0.56735626]
[1771087026724,0.56586827,87.679,87.641,0.56735626]
[1771087028733,0.56586827,87.685,87.651,0.56735626]
[1771087029136,11.40393892,87.689,87.651,0.56735626]
[1771087029737,0.56586827,87.688,87.651,0.56735626]
[1771087029942,0.56586827,87.679,87.642,40.50254715]
[1771087030128,0.56586827,87.679,87.643,0.56735626]
[1771087030343,0.56586827,87.688,87.643,0.56735626]
[1771087030727,11.40419902,87.687,87.651,0.56735626]
[1771087031748,28.50767733,87.696,87.644,39.93427957]
[1771087031749,0.56586827,87.696,87.644,39.93427957]
[1771087031930,0.56586827,87.689,87.651,0.56735626]
[1771087032748,5.36086188,87.729,87.639,47.48]
[1771087032749,0.74904545,87.72,87.671,0.69751905]
[1771087032933,8.04733405,87.72,87.681,0.69751905]
[1771087033332,11.40060889,87.715,87.681,0.69751905]
[1771087034551,0.1,87.72,87.691,0.69751905]
[1771087034749,7.3982886,87.74,87.665,47.44]
[1771087034750,0.1,87.74,87.711,0.69751905]
[1771087034952,7.2982886,87.73,87.695,11.40315867]
[1771087035141,11.49735693,87.74,87.674,0.69751905]
[1771087035142,0.64904545,87.709,87.674,0.69751905]
[1771087035331,7.2982886,87.7,87.674,0.69751905]
[1771087035651,0.64904545,87.729,87.691,0.69751905]
[1771087036531,0.64904545,87.719,87.682,0.69751905]
[1771087036831,0.64904545,87.699,87.664,0.69751905]
[1771087037153,11.40016872,87.718,87.654,11.40849248]
[1771087037154,0.64904545,87.689,87.654,11.40849248]
[1771087037328,7.2982886,87.7,87.661,0.69751905]
[1771087037925,7.94733405,87.7,87.661,0.69751905]
[1771087038132,0.64904545,87.699,87.661,0.69751905]
[1771087039354,0.64904545,87.689,87.657,11.40807725]
[1771087039554,0.64904545,87.689,87.658,0.69751905]
[1771087039936,12.05181404,87.698,87.66,7.2982886]
[1771087040139,12.05181404,87.698,87.657,11.40807725]
[1771087040140,7.2982886,87.71,87.671,0.69751905]
[1771087040342,11.39902713,87.727,87.691,0.69751905]
[1771087040957,12.04807258,87.727,87.691,0.69751905]
[1771087041253,12.04807258,87.727,87.693,0.69751905]
[1771087041453,11.39902713,87.727,87.693,0.69751905]
[1771087041665,11.39902713,87.727,87.701,0.69751905]
[1771087041851,0.64904545,87.726,87.689,0.69751905]